fUST/lending_fUST_20240720
["ID","MTS","AMOUNT","RATE_DAILY","PERIOD"]
[332681383,1721435440963,-500.0,0.00016438,2]
[332681384,1721435440973,-500.0,0.00016438,2]
[332681385,1721435440983,-500.0,0.00016438,2]
[332681386,1721435440993,-500.0,0.00016438,2]
[332681387,1721435441003,-2706.13,0.00016438,2]
[332681388,1721435441012,-526.47,0.00016438,2]
[332681389,1721435441022,-159.60804227,0.00016438,2]
[332681390,1721435441031,-500.0,0.00016438,2]
[332681391,1721435441041,-1131.73,0.00016438,2]
[332681392,1721435441050,-669.1,0.00016438,2]
[332681393,1721435441061,-500.0,0.00016438,2]
[332681394,1721435441071,-500.0,0.00016438,2]
[332681395,1721435441084,-1142.37,0.00016438,2]
[332681396,1721435441093,-525.66109851,0.00016438,2]
[332681397,1721435441103,-500.0,0.00016438,2]
[332681398,1721435441113,-500.0,0.00016438,2]
[332681399,1721435441123,-500.0,0.00016438,2]
[332681400,1721435441134,-861.01,0.00016438,2]
[332681401,1721435441143,-500.0,0.00016438,2]
[332681402,1721435441153,-2337.17,0.00016438,2]
[332681403,1721435441164,-498.1774399,0.00016438,2]
[332681404,1721435441177,-498.87232176,0.00016438,2]
[332681405,1721435441188,-500.0,0.00016438,2]
[332681406,1721435441198,-500.0,0.00016438,2]
[332681407,1721435441209,-500.0,0.00016438,2]
[332681408,1721435441218,-508.75229527,0.00016438,2]
[332681409,1721435441228,-500.0,0.00016438,2]
[332681410,1721435441238,-500.0,0.00016438,2]
[332681411,1721435441248,-500.0,0.00016438,2]
[332681412,1721435441259,-500.0,0.00016438,2]
[332681413,1721435441270,-500.0,0.00016438,2]
[332681414,1721435441279,-500.0,0.00016438,2]
[332681415,1721435441290,-500.0,0.00016438,2]
[332681416,1721435441299,-500.0,0.00016438,2]
[332681417,1721435441309,-500.0,0.00016438,2]
[332681418,1721435441319,-586.11,0.00016438,2]
[332681419,1721435441329,-500.0,0.00016438,2]
[332681420,1721435441339,-500.0,0.00016438,2]
[332681421,1721435441349,-500.0,0.00016438,2]
[332681422,1721435441361,-500.0,0.00016438,2]
[332681423,1721435441371,-500.0,0.00016438,2]
[332681424,1721435441381,-500.0,0.00016438,2]
[332681425,1721435441391,-500.0,0.00016438,2]
[332681426,1721435441401,-351.42971393,0.00016438,2]
[332681427,1721435441411,-500.0,0.00016438,2]
[332681428,1721435441421,-500.0,0.00016438,2]
[332681429,1721435441430,-500.0,0.00016438,2]
[332681430,1721435441440,-500.0,0.00016438,2]
[332681431,1721435441449,-500.0,0.00016438,2]
[332681432,1721435441459,-500.0,0.00016438,2]
[332681433,1721435441468,-500.0,0.00016438,2]
[332681434,1721435441477,-196.12257275,0.00016438,2]
[332681435,1721435441487,-628.94,0.00016438,2]
[332681436,1721435441496,-562.51,0.00016438,2]
[332681437,1721435441507,-500.0,0.00016438,2]
[332681438,1721435441516,-500.0,0.00016438,2]
[332681439,1721435441527,-500.0,0.00016438,2]
[332681440,1721435441536,-500.0,0.00016438,2]
[332681441,1721435441545,-500.0,0.00016438,2]
[332681442,1721435441558,-500.0,0.00016438,2]
[332681443,1721435441569,-500.0,0.00016438,2]
[332681444,1721435441579,-500.0,0.00016438,2]
[332681445,1721435441589,-500.0,0.00016438,2]
[332681446,1721435441598,-1063.97,0.00016438,2]
[332681447,1721435441608,-500.0,0.00016438,2]
[332681448,1721435441617,-500.0,0.00016438,2]
[332681449,1721435441626,-1880.34,0.00016438,2]
[332681450,1721435441636,-892.47,0.00016438,2]
[332681451,1721435441645,-501.1559506,0.00016438,2]
[332681452,1721435441655,-771.82,0.00016438,2]
[332681453,1721435441665,-500.0,0.00016438,2]
[332681454,1721435441675,-2762.4,0.00016438,2]
[332681455,1721435441687,-500.0,0.00016438,2]
[332681456,1721435441697,-500.0,0.00016438,2]
[332681457,1721435441706,-504.63171882,0.00016438,2]
[332681458,1721435441716,-722.25,0.00016438,2]
[332681459,1721435441726,-2822.78,0.00016438,2]
[332681460,1721435441739,-559.8459662,0.00016438,2]
[332681461,1721435441750,-503.82780258,0.00016438,2]
[332681462,1721435441761,-500.0,0.00016438,2]
[332681463,1721435441771,-500.0,0.00016438,2]
[332681464,1721435441782,-500.0,0.00016438,2]
[332681465,1721435441793,-500.0,0.00016438,2]
[332681466,1721435441803,-500.0,0.00016438,2]
[332681467,1721435441813,-1042.66,0.00016438,2]
[332681468,1721435441823,-500.0,0.00016438,2]
[332681469,1721435441832,-1811.84,0.00016438,2]
[332681470,1721435441842,-698.87,0.00016438,2]
[332681471,1721435441851,-599.6110334,0.00016438,2]
[332681472,1721435441862,-500.0,0.00016438,2]
[332681473,1721435441871,-923.59,0.00016438,2]
[332681474,1721435441881,-109.1101182,0.00016438,2]
[332681476,1721435442222,-390.8898818,0.00016438,2]
[332681477,1721435442232,-500.0,0.00016438,2]
[332681478,1721435442242,-1653.44,0.00016438,2]
[332681479,1721435442251,-832.77,0.00016438,2]
[332681480,1721435442261,-500.0,0.00016438,2]
[332681481,1721435442271,-591.38,0.00016438,2]
[332681482,1721435442282,-500.0,0.00016438,2]
[332681483,1721435442291,-500.0,0.00016438,2]
[332681484,1721435442301,-500.0,0.00016438,2]
[332681485,1721435442311,-500.0,0.00016438,2]
[332681486,1721435442321,-500.0,0.00016438,2]
[332681487,1721435442330,-615.05,0.00016438,2]
[332681488,1721435442340,-216.59917431,0.00016438,2]
[332681489,1721435442350,-758.39,0.00016438,2]
[332681490,1721435442359,-808.91,0.00016438,2]
[332681491,1721435442369,-604.61388818,0.00016438,2]
[332681492,1721435442378,-506.21244331,0.00016438,2]
[332681493,1721435442388,-176.76189301,0.00016438,2]
[332681494,1721435442397,-500.0,0.00016438,2]
[332681495,1721435442407,-1931.21,0.00016438,2]
[332681496,1721435442416,-500.0,0.00016438,2]
[332681497,1721435442425,-500.0,0.00016438,2]
[332681498,1721435442435,-1570.39,0.00016438,2]
[332681499,1721435442444,-502.41604891,0.00016438,2]
[332681500,1721435442454,-500.0,0.00016438,2]
[332681501,1721435442463,-500.0,0.00016438,2]
[332681502,1721435442473,-500.0,0.00016438,2]
[332681503,1721435442482,-500.0,0.00016438,2]
[332681504,1721435442492,-500.0,0.00016438,2]
[332681505,1721435442501,-1314.61,0.00016438,2]
[332681506,1721435442511,-500.0,0.00016438,2]
[332681507,1721435442520,-500.0,0.00016438,2]
[332681508,1721435442529,-500.0,0.00016438,2]
[332681509,1721435442538,-500.0,0.00016438,2]
[332681510,1721435442548,-500.0,0.00016438,2]
[332681511,1721435442558,-500.0,0.00016438,2]
[332681512,1721435442568,-500.0,0.00016438,2]
[332681513,1721435442577,-500.0,0.00016438,2]
[332681514,1721435442590,-500.0,0.00016438,2]
[332681515,1721435442599,-703.1,0.00016438,2]
[332681516,1721435442609,-500.0,0.00016438,2]
[332681517,1721435442618,-500.0,0.00016438,2]
[332681518,1721435442628,-132.86267697,0.00016438,2]
[332681519,1721435442643,-367.13732303,0.00016438,2]
[332681520,1721435442652,-777.72,0.00016438,2]
[332681521,1721435442662,-1138.0,0.00016438,2]
[332681522,1721435442672,-500.0,0.00016438,2]
[332681523,1721435442681,-500.0,0.00016438,2]
[332681524,1721435442691,-500.0,0.00016438,2]
[332681525,1721435442701,-500.0,0.00016438,2]
[332681526,1721435442710,-500.0,0.00016438,2]
[332681527,1721435442720,-619.9,0.00016438,2]
[332681528,1721435442729,-502.95656582,0.00016438,2]
[332681529,1721435442739,-619.9,0.00016438,2]
[332681530,1721435442749,-619.9,0.00016438,2]
[332681531,1721435442758,-619.9,0.00016438,2]
[332681532,1721435442768,-619.9,0.00016438,2]
[332681533,1721435442778,-619.9,0.00016438,2]
[332681534,1721435442787,-619.9,0.00016438,2]
[332681535,1721435442796,-619.9,0.00016438,2]
[332681536,1721435442807,-619.9,0.00016438,2]
[332681537,1721435442816,-619.9,0.00016438,2]
[332681538,1721435442826,-619.9,0.00016438,2]
[332681539,1721435442835,-619.9,0.00016438,2]
[332681540,1721435442844,-619.9,0.00016438,2]
[332681541,1721435442853,-619.9,0.00016438,2]
[332681542,1721435442862,-526.23,0.00016438,2]
[332681543,1721435442873,-734.04,0.00016438,2]
[332681544,1721435442885,-619.9,0.00016438,2]
[332681545,1721435442895,-619.9,0.00016438,2]
[332681547,1721435442906,-619.9,0.00016438,2]
[332681549,1721435442916,-500.0,0.00016438,2]
[332681551,1721435442927,-619.9,0.00016438,2]
[332681552,1721435442936,-619.9,0.00016438,2]
[332681553,1721435442946,-619.9,0.00016438,2]
[332681554,1721435442956,-619.9,0.00016438,2]
[332681556,1721435442966,-619.9,0.00016438,2]
[332681558,1721435442976,-505.84,0.00016438,2]
[332681560,1721435442985,-619.9,0.00016438,2]
[332681562,1721435442994,-619.93069421,0.00016438,2]
[332681563,1721435443003,-500.0,0.00016438,2]
[332681564,1721435443012,-500.0,0.00016438,2]
[332681565,1721435443022,-500.0,0.00016438,2]
[332681566,1721435443031,-2269.46,0.00016438,2]
[332681567,1721435443040,-500.0,0.00016438,2]
[332681568,1721435443049,-858.32,0.00016438,2]
[332681569,1721435443059,-510.71,0.00016438,2]
[332681570,1721435443070,-504.76180352,0.00016438,2]
[332681571,1721435443079,-1143.18340767,0.00016438,2]
[332681576,1721435443528,-85.68659233,0.00016438,2]
[332681577,1721435443537,-500.0,0.00016438,2]
[332681578,1721435443547,-500.0,0.00016438,2]
[332681579,1721435443557,-176.98284728,0.00016438,2]
[332681580,1721435443566,-947.45,0.00016438,2]
[332681581,1721435443576,-263.12112292,0.00016438,2]
[332681583,1721435443585,-500.0,0.00016438,2]
[332681585,1721435443595,-500.0,0.00016438,2]
[332681586,1721435443604,-1480.44,0.00016438,2]
[332681587,1721435443613,-500.0,0.00016438,2]
[332681588,1721435443623,-500.0,0.00016438,2]
[332681589,1721435443632,-500.0,0.00016438,2]
[332681590,1721435443642,-1413.96,0.00016438,2]
[332681591,1721435443653,-509.95752801,0.00016438,2]
[332681592,1721435443663,-717.27,0.00016438,2]
[332681593,1721435443673,-889.15,0.00016438,2]
[332681594,1721435443684,-500.0,0.00016438,2]
[332681595,1721435443694,-1838.14,0.00016438,2]
[332681596,1721435443704,-1040.88,0.00016438,2]
[332681597,1721435443715,-652.34,0.00016438,2]
[332681598,1721435443724,-539.0,0.00016438,2]
[332681599,1721435443734,-500.0,0.00016438,2]
[332681600,1721435443744,-518.13346543,0.00016438,2]
[332681601,1721435443754,-500.0,0.00016438,2]
[332681602,1721435443764,-500.0,0.00016438,2]
[332681603,1721435443774,-500.0,0.00016438,2]
[332681604,1721435443784,-1612.12,0.00016438,2]
[332681605,1721435443794,-541.16149378,0.00016438,2]
[332681606,1721435443806,-500.0,0.00016438,2]
[332681607,1721435443815,-742.44,0.00016438,2]
[332681608,1721435443825,-500.0,0.00016438,2]
[332681609,1721435443834,-500.0,0.00016438,2]
[332681610,1721435443843,-500.45278086,0.00016438,2]
[332681611,1721435443854,-500.0,0.00016438,2]
[332681612,1721435443865,-500.0,0.00016438,2]
[332681613,1721435443876,-500.0,0.00016438,2]
[332681614,1721435443886,-500.0,0.00016438,2]
[332681615,1721435443896,-2067.26,0.00016438,2]
[332681616,1721435443906,-500.0,0.00016438,2]
[332681617,1721435443916,-500.0,0.00016438,2]
[332681618,1721435443926,-523.4052699,0.00016438,2]
[332681619,1721435443937,-500.0,0.00016438,2]
[332681620,1721435443948,-500.0,0.00016438,2]
[332681621,1721435443957,-504.81273732,0.00016438,2]
[332681622,1721435443968,-1169.18,0.00016438,2]
[332681623,1721435443977,-759.11,0.00016438,2]
[332681624,1721435443996,-500.0,0.00016438,2]
[332681625,1721435444009,-500.0,0.00016438,2]
[332681626,1721435444019,-500.0,0.00016438,2]
[332681627,1721435444040,-500.0,0.00016438,2]
[332681628,1721435444050,-789.33,0.00016438,2]
[332681629,1721435444063,-1000.0,0.00016438,2]
[332681630,1721435444072,-1000.0,0.00016438,2]
[332681631,1721435444082,-585.47410821,0.00016438,2]
[332681639,1721435446561,-414.52589179,0.00016438,2]
[332681640,1721435446570,-1000.0,0.00016438,2]
[332681641,1721435446580,-500.0,0.00016438,2]
[332681643,1721435446590,-1202.25,0.00016438,2]
[332681644,1721435446600,-797.91,0.00016438,2]
[332681645,1721435446609,-500.0,0.00016438,2]
[332681646,1721435446619,-260.364544,0.00016438,2]
[332681647,1721435446629,-500.0,0.00016438,2]
[332681648,1721435446638,-260.364544,0.00016438,2]
[332681649,1721435446648,-260.364544,0.00016438,2]
[332681650,1721435446657,-260.364544,0.00016438,2]
[332681651,1721435446667,-260.364544,0.00016438,2]
[332681652,1721435446676,-260.364544,0.00016438,2]
[332681653,1721435446686,-260.364544,0.00016438,2]
[332681654,1721435446695,-260.364544,0.00016438,2]
[332681655,1721435446705,-260.364544,0.00016438,2]
[332681656,1721435446715,-260.364544,0.00016438,2]
[332681657,1721435446724,-500.0,0.00016438,2]
[332681658,1721435446734,-260.364544,0.00016438,2]
[332681659,1721435446743,-260.364544,0.00016438,2]
[332681660,1721435446753,-260.364544,0.00016438,2]
[332681661,1721435446762,-260.364544,0.00016438,2]
[332681662,1721435446771,-260.364544,0.00016438,2]
[332681663,1721435446781,-260.364544,0.00016438,2]
[332681664,1721435446790,-260.364544,0.00016438,2]
[332681665,1721435446800,-260.364536,0.00016438,2]
[332681666,1721435446811,-687.61,0.00016438,2]
[332681667,1721435446820,-500.0,0.00016438,2]
[332681668,1721435446830,-628.75,0.00016438,2]
[332681669,1721435446839,-500.0,0.00016438,2]
[332681670,1721435446849,-301.2515248,0.00016438,2]
[332681671,1721435446858,-500.0,0.00016438,2]
[332681672,1721435446867,-500.0,0.00016438,2]
[332681673,1721435446880,-500.0,0.00016438,2]
[332681674,1721435446889,-4531.46985886,0.00016438,2]
[332681675,1721435446907,-1078.27014114,0.00016438,2]
[332681676,1721435446917,-502.58739473,0.00016438,2]
[332681677,1721435446926,-151.0,0.00016438,2]
[332681678,1721435446935,-151.0,0.00016438,2]
[332681679,1721435446945,-151.0,0.00016438,2]
[332681680,1721435446955,-151.0,0.00016438,2]
[332681681,1721435446965,-151.0,0.00016438,2]
[332681682,1721435446976,-151.0,0.00016438,2]
[332681683,1721435446986,-4971.38,0.00016438,2]
[332681684,1721435446995,-500.0,0.00016438,2]
[332681685,1721435447005,-151.0,0.00016438,2]
[332681686,1721435447015,-151.0,0.00016438,2]
[332681687,1721435447024,-151.0,0.00016438,2]
[332681688,1721435447034,-168.283633,0.00016438,2]
[332681689,1721435447043,-500.0,0.00016438,2]
[332681690,1721435447053,-500.0,0.00016438,2]
[332681691,1721435447064,-3024.72,0.00016438,2]
[332681692,1721435447074,-500.0,0.00016438,2]
[332681693,1721435447084,-890.36,0.00016438,2]
[332681694,1721435447093,-500.0,0.00016438,2]
[332681695,1721435447103,-500.0,0.00016438,2]
[332681696,1721435447112,-500.0,0.00016438,2]
[332681697,1721435447121,-500.0,0.00016438,2]
[332681698,1721435447131,-500.0,0.00016438,2]
[332681699,1721435447140,-686.11,0.00016438,2]
[332681700,1721435447150,-677.76,0.00016438,2]
[332681701,1721435447160,-3352.48,0.00016438,2]
[332681702,1721435447169,-1276.75,0.00016438,2]
[332681703,1721435447179,-553.94,0.00016438,2]
[332681704,1721435447188,-627.14,0.00016438,2]
[332681705,1721435447198,-2414.95,0.00016438,2]
[332681706,1721435447208,-1978.2,0.00016438,2]
[332681707,1721435447218,-573.02,0.00016438,2]
[332681708,1721435447227,-233.6381279,0.00016438,2]
[332681709,1721435447237,-1568.65,0.00016438,2]
[332681710,1721435447247,-500.0,0.00016438,2]
[332681711,1721435447258,-500.0,0.00016438,2]
[332681712,1721435447269,-500.0,0.00016438,2]
[332681713,1721435447279,-649.11,0.00016438,2]
[332681714,1721435447289,-500.0,0.00016438,2]
[332681715,1721435447299,-495.43501001,0.00016438,2]
[332681716,1721435447310,-619.4,0.00016438,2]
[332681717,1721435447321,-1784.52,0.00016438,2]
[332681718,1721435447331,-1073.45,0.00016438,2]
[332681719,1721435447341,-500.0,0.00016438,2]
[332681720,1721435447351,-649.24,0.00016438,2]
[332681721,1721435447361,-892.07,0.00016438,2]
[332681722,1721435447371,-500.0,0.00016438,2]
[332681723,1721435447381,-971.55,0.00016438,2]
[332681724,1721435447391,-542.43,0.00016438,2]
[332681725,1721435447401,-164.59305918,0.00016438,2]
[332681726,1721435447411,-623.35,0.00016438,2]
[332681727,1721435447422,-623.35,0.00016438,2]
[332681728,1721435447432,-623.35,0.00016438,2]
[332681729,1721435447443,-500.0,0.00016438,2]
[332681730,1721435447453,-508.64,0.00016438,2]
[332681731,1721435447464,-623.35,0.00016438,2]
[332681732,1721435447475,-623.35,0.00016438,2]
[332681733,1721435447486,-623.35,0.00016438,2]
[332681734,1721435447496,-623.35,0.00016438,2]
[332681735,1721435447508,-623.35,0.00016438,2]
[332681736,1721435447518,-623.35,0.00016438,2]
[332681737,1721435447527,-623.35,0.00016438,2]
[332681738,1721435447536,-623.35,0.00016438,2]
[332681739,1721435447545,-623.35,0.00016438,2]
[332681740,1721435447555,-500.0,0.00016438,2]
[332681741,1721435447567,-623.35,0.00016438,2]
[332681742,1721435447576,-623.35,0.00016438,2]
[332681743,1721435447586,-9102.31,0.00016438,2]
[332681744,1721435447595,-623.35,0.00016438,2]
[332681745,1721435447604,-623.35,0.00016438,2]
[332681746,1721435447614,-623.35,0.00016438,2]
[332681747,1721435447623,-623.35,0.00016438,2]
[332681748,1721435447633,-623.35,0.00016438,2]
[332681749,1721435447642,-623.35,0.00016438,2]
[332681750,1721435447652,-623.35,0.00016438,2]
[332681751,1721435447661,-623.35,0.00016438,2]
[332681752,1721435447670,-623.35,0.00016438,2]
[332681753,1721435447681,-500.0,0.00016438,2]
[332681754,1721435447691,-623.36377968,0.00016438,2]
[332681755,1721435447701,-500.0,0.00016438,2]
[332681756,1721435447712,-500.0,0.00016438,2]
[332681757,1721435447723,-500.0,0.00016438,2]
[332681758,1721435447733,-500.0,0.00016438,2]
[332681759,1721435447743,-500.0,0.00016438,2]
[332681760,1721435447753,-500.0,0.00016438,2]
[332681761,1721435447763,-500.0,0.00016438,2]
[332681762,1721435447775,-500.0,0.00016438,2]
[332681763,1721435447785,-671.78,0.00016438,2]
[332681764,1721435447798,-500.0,0.00016438,2]
[332681765,1721435447808,-2101.68,0.00016438,2]
[332681766,1721435447817,-206.4035798,0.00016438,2]
[332681767,1721435447828,-19357.26,0.00016438,2]
[332681768,1721435447838,-500.0,0.00016438,2]
[332681769,1721435447850,-500.0,0.00016438,2]
[332681770,1721435447861,-1398.44,0.00016438,2]
[332681771,1721435447872,-2800.77,0.00016438,2]
[332681772,1721435447886,-500.0,0.00016438,2]
[332681773,1721435447895,-500.0,0.00016438,2]
[332681774,1721435447906,-500.0,0.00016438,2]
[332681775,1721435447915,-947.14,0.00016438,2]
[332681776,1721435447925,-4149.72,0.00016438,2]
[332681777,1721435447935,-500.0,0.00016438,2]
[332681778,1721435447945,-873.35,0.00016438,2]
[332681779,1721435447954,-525.95,0.00016438,2]
[332681780,1721435447963,-500.0,0.00016438,2]
[332681781,1721435447973,-500.0,0.00016438,2]
[332681782,1721435447982,-510.96258765,0.00016438,2]
[332681783,1721435447992,-1343.16,0.00016438,2]
[332681784,1721435448002,-3096.15,0.00016438,2]
[332681785,1721435448011,-5854.95,0.00016438,2]
[332681786,1721435448020,-1397.41,0.00016438,2]
[332681787,1721435448030,-3372.01,0.00016438,2]
[332681788,1721435448039,-500.0,0.00016438,2]
[332681789,1721435448048,-500.0,0.00016438,2]
[332681790,1721435448058,-500.0,0.00016438,2]
[332681791,1721435448068,-500.0,0.00016438,2]
[332681792,1721435448078,-1544.03,0.00016438,2]
[332681793,1721435448088,-2216.9,0.00016438,2]
[332681794,1721435448097,-537.5,0.00016438,2]
[332681795,1721435448107,-523.27,0.00016438,2]
[332681796,1721435448116,-3018.27,0.00016438,2]
[332681797,1721435448125,-530.67,0.00016438,2]
[332681798,1721435448135,-500.0,0.00016438,2]
[332681799,1721435448144,-7957.29,0.00016438,2]
[332681800,1721435448153,-862.78,0.00016438,2]
[332681801,1721435448162,-500.0,0.00016438,2]
[332681802,1721435448172,-3630.72,0.00016438,2]
[332681803,1721435448181,-6117.12,0.00016438,2]
[332681804,1721435448191,-500.0,0.00016438,2]
[332681805,1721435448201,-500.0,0.00016438,2]
[332681806,1721435448211,-500.0,0.00016438,2]
[332681807,1721435448220,-2465.2,0.00016438,2]
[332681808,1721435448229,-5157.19,0.00016438,2]
[332681809,1721435448238,-1717.77,0.00016438,2]
[332681810,1721435448247,-500.0,0.00016438,2]
[332681811,1721435448257,-578.34013154,0.00016438,2]
[332681812,1721435448266,-500.0,0.00016438,2]
[332681813,1721435448277,-500.0,0.00016438,2]
[332681814,1721435448286,-612.79,0.00016438,2]
[332681815,1721435448295,-798.94,0.00016438,2]
[332681816,1721435448305,-1937.91,0.00016438,2]
[332681817,1721435448314,-1214.88,0.00016438,2]
[332681818,1721435448324,-502.01701319,0.00016438,2]
[332681819,1721435448334,-500.0,0.00016438,2]
[332681820,1721435448343,-13363.25,0.00016438,2]
[332681821,1721435448352,-2458.26,0.00016438,2]
[332681822,1721435448362,-500.0,0.00016438,2]
[332681823,1721435448371,-500.0,0.00016438,2]
[332681824,1721435448380,-500.0,0.00016438,2]
[332681825,1721435448389,-1574.94,0.00016438,2]
[332681826,1721435448398,-1245.58,0.00016438,2]
[332681827,1721435448408,-921.41,0.00016438,2]
[332681828,1721435448417,-500.0,0.00016438,2]
[332681829,1721435448426,-3200.4,0.00016438,2]
[332681830,1721435448436,-812.55,0.00016438,2]
[332681831,1721435448446,-500.0,0.00016438,2]
[332681832,1721435448455,-830.99,0.00016438,2]
[332681833,1721435448466,-500.0,0.00016438,2]
[332681834,1721435448476,-3830.14,0.00016438,2]
[332681835,1721435448485,-502.41637901,0.00016438,2]
[332681836,1721435448495,-500.0,0.00016438,2]
[332681837,1721435448506,-2543.03,0.00016438,2]
[332681838,1721435448516,-500.0,0.00016438,2]
[332681839,1721435448526,-500.0,0.00016438,2]
[332681840,1721435448535,-500.0,0.00016438,2]
[332681841,1721435448545,-500.0,0.00016438,2]
[332681842,1721435448557,-500.0,0.00016438,2]
[332681843,1721435448566,-500.0,0.00016438,2]
[332681844,1721435448576,-516.88,0.00016438,2]
[332681845,1721435448585,-500.0,0.00016438,2]
[332681846,1721435448594,-500.0,0.00016438,2]
[332681847,1721435448605,-522.58,0.00016438,2]
[332681848,1721435448615,-500.0,0.00016438,2]
[332681849,1721435448624,-500.0,0.00016438,2]
[332681850,1721435448634,-1395.62,0.00016438,2]
[332681851,1721435448643,-1383.59,0.00016438,2]
[332681852,1721435448653,-500.0,0.00016438,2]
[332681853,1721435448663,-501.55721621,0.00016438,2]
[332681854,1721435448673,-1673.3,0.00016438,2]
[332681855,1721435448683,-500.0,0.00016438,2]
[332681856,1721435448693,-500.0,0.00016438,2]
[332681857,1721435448703,-2263.8,0.00016438,2]
[332681858,1721435448713,-500.0,0.00016438,2]
[332681859,1721435448722,-1050.43,0.00016438,2]
[332681860,1721435448732,-2826.9,0.00016438,2]
[332681861,1721435448741,-895.87,0.00016438,2]
[332681862,1721435448751,-500.0,0.00016438,2]
[332681863,1721435448761,-562.82,0.00016438,2]
[332681864,1721435448771,-562.82,0.00016438,2]
[332681865,1721435448985,-562.82,0.00016438,2]
[332681866,1721435448996,-562.82,0.00016438,2]
[332681867,1721435449006,-343.88461004,0.00016438,2]
[332681868,1721435449016,-562.82,0.00016438,2]
[332681869,1721435449027,-562.82,0.00016438,2]
[332681870,1721435449037,-562.82,0.00016438,2]
[332681871,1721435449047,-506.21006842,0.00016438,2]
[332681872,1721435449057,-562.82,0.00016438,2]
[332681873,1721435449066,-567.1712879,0.00016438,2]
[332681874,1721435449077,-562.82,0.00016438,2]
[332681875,1721435449087,-500.0,0.00016438,2]
[332681876,1721435449097,-562.82,0.00016438,2]
[332681877,1721435449107,-500.0,0.00016438,2]
[332681878,1721435449118,-562.82,0.00016438,2]
[332681879,1721435449128,-562.82,0.00016438,2]
[332681880,1721435449138,-562.82,0.00016438,2]
[332681881,1721435449148,-562.82,0.00016438,2]
[332681882,1721435449158,-500.0,0.00016438,2]
[332681883,1721435449168,-562.82,0.00016438,2]
[332681884,1721435449178,-562.82,0.00016438,2]
[332681885,1721435449187,-562.82,0.00016438,2]
[332681886,1721435449197,-562.82,0.00016438,2]
[332681887,1721435449207,-562.82,0.00016438,2]
[332681888,1721435449216,-562.82,0.00016438,2]
[332681889,1721435449225,-562.82,0.00016438,2]
[332681890,1721435449236,-562.82,0.00016438,2]
[332681891,1721435449246,-562.82,0.00016438,2]
[332681892,1721435449259,-562.9995,0.00016438,2]
[332681893,1721435449270,-564.26,0.00016438,2]
[332681894,1721435449280,-500.0,0.00016438,2]
[332681895,1721435449290,-500.0,0.00016438,2]
[332681896,1721435449301,-500.0,0.00016438,2]
[332681897,1721435449314,-534.75,0.00016438,2]
[332681898,1721435449324,-500.0,0.00016438,2]
[332681899,1721435449334,-871.04,0.00016438,2]
[332681900,1721435449343,-529.74,0.00016438,2]
[332681901,1721435449354,-500.0,0.00016438,2]
[332681902,1721435449364,-2788.63,0.00016438,2]
[332681903,1721435449375,-500.0,0.00016438,2]
[332681904,1721435449385,-500.0,0.00016438,2]